bitfinex/quotes_ETHUSD_20251215
["timestamp","ask_amount","ask_price","bid_price","bid_amount"]
[1765782750975,0.6485,3129.7,3129.6,4.92226174]
[1765782751474,1.1209,3129.7,3129.6,4.92226174]
[1765782752573,1.1209,3129.7,3129.6,8.11755826]
[1765782752779,0.4584,3129.7,3129.6,8.88970668]
[1765782754578,0.1901,3129.9,3129.6,12.0850032]
[1765782754765,0.6625,3129.9,3129.6,12.0850032]
[1765782755176,0.1836,3130.3,3129.6,10.86503798]
[1765782755357,0.4724,3129.9,3129.8,4.41526174]
[1765782755555,0.4724,3129.9,3129.8,5.94329171]
[1765782755756,0.9308,3129.9,3129.8,5.94329171]
[1765782756261,1.1209,3129.9,3129.8,5.94329171]
[1765782756466,1.1209,3129.9,3129.8,4.41526174]
[1765782757112,1.1209,3129.9,3129.8,7.61035407]
[1765782763317,1.1229,3129.9,3129.8,7.61035407]
[1765782768034,1.1229,3129.9,3129.8,3.19509233]
[1765782770118,1.1229,3129.9,3129.7,3.19518922]
[1765782770321,0.8426,3129.8,3129.7,3.19518922]
[1765782770621,0.85219155,3129.8,3129.7,3.19518922]
[1765782770823,0.85219155,3129.8,3129.4,6.39100146]
[1765782771002,0.4576,3129.6,3129.4,7.52222778]
[1765782771202,0.48199155,3129.8,3129.4,7.52222778]
[1765782771843,0.4724,3129.8,3129.4,7.52222778]
[1765782772247,0.4724,3129.8,3129.6,4.41526174]
[1765782772648,0.4584,3129.7,3129.6,4.41526174]
[1765782773344,0.4584,3129.7,3129.6,8.80430721]
[1765782773852,0.1921,3129.9,3129.6,9.28380721]
[1765782774054,0.6645,3129.9,3129.6,9.28380721]
[1765782774344,0.002,3129.9,3129.6,12.47910373]
[1765782774733,0.002,3129.9,3129.8,4.41526174]
[1765782775128,0.4604,3129.9,3129.8,4.41526174]
[1765782775326,0.002,3129.9,3129.8,8.08985407]
[1765782775551,0.002,3129.9,3129.8,9.28981444]
[1765782781556,0.002,3129.9,3129.8,9.28505406]
[1765782782052,0.002,3129.9,3129.8,9.28985406]
[1765782783145,0.002,3129.9,3129.8,9.76235406]
[1765782783967,0.002,3129.9,3129.8,9.28985406]
[1765782785370,0.002,3129.9,3129.8,9.87032935]
[1765782786063,0.002,3129.9,3129.8,10.34282935]
[1765782786650,0.002,3129.9,3129.8,10.27583335]
[1765782786846,0.002,3129.9,3129.8,15.15883471]
[1765782787375,0.002,3129.9,3129.8,10.74833335]
[1765782787969,0.002,3129.9,3129.8,15.15883471]
[1765782788275,0.002,3129.9,3129.8,14.68633471]
[1765782788669,0.002,3129.9,3129.8,15.15883471]
[1765782790649,0.002,3129.9,3129.8,15.28673832]
[1765782791276,0.002,3130.4,3129.9,0.58047529]
[1765782791478,0.4843,3130.2,3129.9,4.41050136]
[1765782791798,0.6764,3130.0,3129.9,7.60549161]
[1765782792150,1.1607,3130.0,3129.9,7.60549161]
[1765782793776,1.1607,3130.0,3129.8,3.19507615]
[1765782794071,0.3304,3129.8,3129.7,4.41050136]
[1765782794476,0.8147,3129.8,3129.7,4.41050136]
[1765782796676,0.8147,3129.8,3129.7,7.60569578]
[1765782796881,0.8147,3129.8,3129.7,3.19519442]
[1765782807589,0.8147,3129.8,3129.6,7.60676098]
[1765782807791,0.9606,3129.7,3129.6,7.60676098]
[1765782811902,0.4676,3129.7,3129.6,7.60676098]
[1765782812102,0.4676,3129.7,3129.6,8.80010793]
[1765782812573,0.4676,3129.7,3129.6,4.38960657]
[1765782812778,0.9435,3129.7,3129.6,4.38960657]
[1765782819087,0.4676,3129.7,3129.6,4.38960657]
[1765782819715,0.9435,3129.7,3129.6,4.38960657]
[1765782823188,0.4676,3129.7,3129.6,0.001]
[1765782823391,0.9435,3129.7,3129.6,0.001]
[1765782824407,0.95309155,3129.7,3129.6,0.001]
[1765782825308,4.14828597,3129.7,3129.6,0.001]
[1765782828682,4.27626119,3129.7,3129.6,0.001]
[1765782828894,5.02775658,3129.7,3129.6,0.001]
[1765782831718,35.45487701,3129.7,3129.6,0.001]
[1765782831886,35.42280194,3129.7,3129.6,0.001]
[1765782832207,36.00327723,3129.7,3129.6,0.001]
[1765782832511,37.38361623,3129.7,3129.6,0.001]
[1765782833429,43.71261623,3129.7,3129.6,0.001]
[1765782833625,16.75323723,3129.7,3129.6,0.001]
[1765782833814,32.11672323,3129.7,3129.6,0.001]
[1765782834603,16.75323723,3129.7,3129.6,0.001]
[1765782834813,36.43655723,3129.7,3129.6,0.001]
[1765782834981,32.11672323,3129.7,3129.6,0.001]
[1765782835186,19.67450887,3129.7,3129.6,0.001]
[1765782835382,16.51335387,3129.7,3129.6,0.001]
[1765782835606,15.28724587,3129.7,3129.6,0.001]
[1765782835808,12.84873587,3129.7,3129.6,0.001]
[1765782836009,11.93723187,3129.7,3129.6,0.001]
[1765782836209,14.55126287,3129.7,3129.6,0.001]
[1765782836614,12.44323187,3129.7,3129.6,0.001]
[1765782840026,12.31525665,3129.7,3129.6,0.001]
[1765782841226,12.33345665,3129.7,3129.6,0.001]
[1765782842897,9.99179442,3129.7,3129.6,0.001]
[1765782843095,10.49779442,3129.7,3129.6,0.001]
[1765782843295,10.99189442,3129.7,3129.6,0.001]
[1765782844601,4.66289442,3129.7,3129.6,0.001]
[1765782845418,22.07948342,3129.7,3129.6,0.001]
[1765782845602,24.93080621,3129.7,3129.6,0.001]
[1765782845799,35.4595755,3129.7,3129.6,0.001]
[1765782846349,35.58757447,3129.7,3129.6,0.001]
[1765782847817,8.62819547,3129.7,3129.6,0.001]
[1765782848018,35.59716602,3129.7,3129.6,0.001]
[1765782848715,41.92616602,3129.7,3129.6,0.001]
[1765782849932,14.96678702,3129.7,3129.6,0.001]
[1765782850228,41.92616602,3129.7,3129.6,0.001]
[1765782863032,45.29416602,3129.7,3129.6,0.001]
[1765782863332,41.92616602,3129.7,3129.6,0.001]
[1765782865127,19.68573802,3129.7,3129.6,0.001]
[1765782865328,20.17983802,3129.7,3129.6,0.001]
[1765782865527,25.26355702,3129.7,3129.6,0.001]
[1765782865741,22.74795002,3129.7,3129.6,0.001]
[1765782865941,21.67180602,3129.7,3129.6,0.001]
[1765782866122,17.50998602,3129.7,3129.6,0.001]
[1765782866619,28.27205402,3129.7,3129.6,0.001]
[1765782866811,27.29958602,3129.7,3129.6,0.001]
[1765782867017,23.69532602,3129.7,3129.6,0.001]
[1765782867229,17.06595002,3129.7,3129.6,0.001]
[1765782867630,17.95023702,3129.7,3129.6,0.001]
[1765782867941,17.98353702,3129.7,3129.6,0.001]
[1765782868138,3.70119442,3129.7,3129.6,0.4974]
[1765782868446,4.28166971,3129.7,3129.6,0.9506]
[1765782869249,4.28166971,3129.7,3129.6,0.4974]
[1765782869543,0.00959155,3129.8,3129.6,0.9716]
[1765782869718,0.01159155,3129.9,3129.7,0.4964]
[1765782869918,0.01159155,3129.9,3129.8,0.91308608]
[1765782870120,0.002,3129.9,3129.8,0.91308608]
[1765782870428,0.002,3129.9,3129.8,1.38728608]
[1765782870821,0.002,3129.9,3129.8,4.58237841]
[1765782876654,0.002,3129.9,3129.8,4.7102947]
[1765782880223,0.002,3129.9,3129.8,5.32272091]
[1765782880948,0.002,3129.9,3129.8,5.29076999]
[1765782885458,0.002,3129.9,3129.8,5.29176999]
[1765782886454,0.002,3129.9,3129.8,9.70585724]
[1765782886647,0.002,3129.9,3129.8,5.29176999]
[1765782887949,0.002,3129.9,3129.8,5.32372091]
[1765782888353,0.002,3129.9,3129.8,5.29176999]
[1765782895068,0.002,3129.9,3129.8,9.70585724]
[1765782895364,0.002,3129.9,3129.8,5.29176999]
[1765782895660,0.002,3129.9,3129.8,9.70585724]
[1765782901070,0.002,3129.9,3129.8,9.57794095]
[1765782903475,0.002,3129.9,3129.8,9.57351102]
[1765782914874,0.002,3129.9,3129.8,14.38867234]
[1765782915782,0.002,3129.9,3129.8,9.97901502]
[1765782920092,0.002,3129.9,3129.8,14.38867234]
[1765782920264,0.002,3130.4,3129.9,0.98597929]
[1765782920468,0.002,3130.4,3130.3,5.28836132]
[1765782920686,0.002,3130.4,3130.3,6.37483661]
[1765782921294,0.002,3130.4,3130.3,6.84793661]
[1765782924197,0.002,3130.4,3130.3,10.04251859]
[1765782924982,0.4848,3131.3,3130.4,0.405504]
[1765782925184,0.4868,3131.2,3130.9,8.81931464]
[1765782925698,0.002,3131.2,3130.9,9.29251464]
[1765782927000,0.002,3131.2,3130.9,12.48648442]
[1765782927210,0.002,3131.2,3130.9,13.06695971]
[1765782928122,0.4731,3131.0,3130.9,12.59375971]
[1765782928338,0.4731,3131.0,3130.9,14.223144]
[1765782928796,0.4731,3131.0,3130.9,9.81348668]
[1765782929180,0.002,3131.0,3130.9,14.223144]
[1765782929380,0.002,3131.0,3130.9,14.694844]
[1765782930278,0.002,3131.0,3130.9,15.171444]
[1765782930578,0.002,3131.0,3130.9,14.694844]
[1765782931487,0.9698,3131.0,3130.9,3.19396978]
[1765782931677,0.9698,3131.0,3130.9,7.6036271]
[1765782932683,0.9698,3131.0,3130.9,4.40965732]
[1765782935203,0.9698,3131.0,3130.6,7.60389635]
[1765782935405,0.4934,3130.9,3130.6,4.40965732]
[1765782935712,0.6728,3130.7,3130.3,7.60420429]
[1765782935875,0.002,3131.0,3130.8,0.4814]
[1765782936079,0.002,3131.0,3130.6,4.40965732]
[1765782936080,0.002,3131.0,3130.9,4.40965732]
[1765782936296,0.002,3131.0,3130.9,4.99013261]
[1765782936506,0.9698,3131.0,3130.9,4.99013261]
[1765782937016,0.002,3131.0,3130.9,9.88118993]
[1765782937184,0.002,3131.0,3130.9,14.5673787]
[1765782937507,0.002,3131.0,3130.9,16.03076677]
[1765782939082,0.4954,3131.7,3131.0,0.58047529]
[1765782939287,0.002,3131.7,3131.1,4.92364105]
[1765782939508,0.002,3131.7,3131.6,4.99013261]
[1765782939709,0.002,3131.7,3131.6,5.47153261]
[1765782939911,0.002,3131.7,3131.6,5.97054587]
[1765782941413,0.002,3131.7,3131.6,9.16380171]
[1765782942315,0.002,3131.7,3131.6,8.18338845]
[1765782942316,0.4764,3131.7,3131.6,8.18338845]
[1765782942532,0.9698,3131.7,3131.6,8.18338845]
[1765782942820,0.4764,3131.7,3131.6,8.18338845]
[1765782943412,0.002,3131.7,3131.6,8.66478845]
[1765782944318,0.002,3131.8,3131.6,8.66478845]
[1765782944319,0.002,3131.8,3131.6,13.47994977]
[1765782944517,0.4934,3132.9,3132.1,4.40965732]
[1765782944692,0.1849,3133.0,3132.2,1.23317529]
[1765782944887,0.1849,3133.0,3132.2,1.06187529]
[1765782945109,0.4934,3132.7,3132.2,1.06187529]
[1765782945309,0.1849,3133.0,3132.2,1.06187529]
[1765782945614,0.4934,3132.6,3132.2,4.25451943]
[1765782946818,0.1849,3133.0,3132.2,4.25451943]
[1765782947024,0.4934,3132.8,3132.2,4.25451943]
[1765782947325,0.4934,3132.8,3132.2,4.70811943]
[1765782947516,0.4934,3132.8,3132.2,6.53642706]
[1765782948090,0.4764,3132.3,3132.2,5.60142706]
[1765782948333,0.9698,3132.3,3132.2,3.77311943]
[1765782952406,0.4764,3132.3,3132.2,3.77311943]
[1765782952619,0.002,3132.3,3132.2,4.28644587]
[1765782952809,0.002,3132.3,3132.2,4.25451943]
[1765782954730,0.002,3132.3,3132.2,5.79792994]
[1765782954913,0.002,3132.3,3132.2,8.05200377]
[1765782956030,0.002,3132.3,3132.2,8.45750777]
[1765782956408,0.002,3132.3,3132.2,8.5853035]
[1765782958806,0.002,3132.3,3132.2,8.1317035]
[1765782959022,0.002,3132.3,3132.2,6.9460237]
[1765782959329,0.4579,3132.3,3132.2,6.0591197]
[1765782959529,0.002,3132.3,3132.2,6.5111197]
[1765782959943,0.4579,3132.3,3132.2,4.27811943]
[1765782960240,0.002,3132.3,3132.2,9.66810319]
[1765782960442,0.002,3132.3,3132.2,10.04168075]
[1765782962721,0.4579,3132.3,3132.2,8.18277675]
[1765782962929,0.9106,3132.3,3132.2,8.68777675]
[1765782963614,0.4579,3132.3,3132.2,8.68180735]
[1765782966525,0.002,3133.0,3132.5,0.405504]
[1765782966723,0.002,3133.7,3133.0,0.58047529]
[1765782966914,0.002,3133.7,3133.5,4.98416321]
[1765782967111,0.002,3133.7,3133.5,0.58047529]
[1765782967317,0.002,3133.7,3133.5,3.7717949]
[1765782967318,0.4579,3133.6,3133.5,3.7717949]
[1765782967843,0.9106,3133.6,3133.5,3.19131961]
[1765782969715,0.9106,3133.6,3133.3,6.38296055]
[1765782971043,0.3517,3133.4,3133.3,8.17560045]
[1765782973434,0.3517,3133.4,3133.3,8.51326423]
[1765782977347,0.8044,3133.4,3133.3,3.19143724]
[1765782977557,0.81399155,3133.4,3133.0,0.001]
[1765782977765,0.46549155,3133.1,3133.0,0.001]
[1765782978239,0.91819155,3133.1,3133.0,0.001]
[1765782980239,1.42319155,3133.1,3133.0,0.001]
[1765782980665,0.91819155,3133.1,3133.0,0.001]
[1765782984756,4.10991859,3133.1,3133.0,0.001]
[1765782985050,4.5723696,3133.1,3133.0,0.001]
[1765782985423,1.38064256,3133.1,3133.0,0.001]
[1765782985630,1.4136,3133.1,3133.0,0.001]
[1765782986039,1.42319155,3133.1,3133.0,0.001]
[1765782992174,0.91819155,3133.1,3133.0,0.001]
[1765782992353,1.42319155,3133.1,3133.0,0.001]
[1765782995974,0.91819155,3133.1,3133.0,0.001]
[1765782996149,1.42319155,3133.1,3133.0,0.001]
[1765782997571,4.61491859,3133.1,3133.0,0.001]
[1765782997780,5.39852208,3133.1,3133.0,0.001]
[1765782998572,5.43059715,3133.1,3133.0,0.001]
[1765782999463,32.38997615,3133.1,3133.0,0.001]
[1765782999652,32.35790108,3133.1,3133.0,0.001]
[1765782999847,32.93837637,3133.1,3133.0,0.001]
[1765783001066,33.34388037,3133.1,3133.0,0.001]
[1765783002879,32.83888037,3133.1,3133.0,0.001]
[1765783003051,33.34388037,3133.1,3133.0,0.001]
[1765783003255,6.38450137,3133.1,3133.0,0.001]
[1765783003457,33.34388037,3133.1,3133.0,0.001]
[1765783004078,32.83888037,3133.1,3133.0,0.001]
[1765783004274,33.34388037,3133.1,3133.0,0.001]
[1765783005866,9.22140437,3133.1,3133.0,0.001]
[1765783006470,10.85595037,3133.1,3133.0,0.001]
[1765783006855,11.26145437,3133.1,3133.0,0.001]
[1765783007275,10.75645437,3133.1,3133.0,0.001]
[1765783007473,17.31291137,3133.1,3133.0,0.001]
[1765783008486,6.38450137,3133.1,3133.0,0.001]
[1765783008678,17.31291137,3133.1,3133.0,0.001]
[1765783010482,20.54721237,3133.1,3133.0,0.001]
[1765783011467,25.51135437,3133.1,3133.0,0.001]
[1765783012490,6.38450137,3133.1,3133.0,0.001]
[1765783012676,25.51135437,3133.1,3133.0,0.001]
[1765783013593,6.38450137,3133.1,3133.0,0.001]
[1765783013779,25.51135437,3133.1,3133.0,0.001]
[1765783014092,20.30966637,3133.1,3133.0,0.001]
[1765783014669,21.02446537,3133.1,3133.0,0.001]
[1765783015495,20.46746537,3133.1,3133.0,0.001]
[1765783015685,21.02698337,3133.1,3133.0,0.001]
[1765783015890,20.41798337,3133.1,3133.0,0.001]
[1765783016068,17.53198337,3133.1,3133.0,0.001]
[1765783016265,18.03698337,3133.1,3133.0,0.001]
[1765783016697,19.48446737,3133.1,3133.0,0.001]
[1765783016872,19.16498337,3133.1,3133.0,0.001]
[1765783017796,19.48446737,3133.1,3133.0,0.001]
[1765783018091,19.16498337,3133.1,3133.0,0.001]
[1765783018796,20.48446737,3133.1,3133.0,0.001]
[1765783019895,25.17178537,3133.1,3133.0,0.001]
[1765783020097,24.85230137,3133.1,3133.0,0.001]
[1765783020798,24.68270137,3133.1,3133.0,0.001]
[1765783021008,23.68270137,3133.1,3133.0,0.001]
[1765783021800,26.56691237,3133.1,3133.0,0.001]
[1765783022482,14.72995137,3133.1,3133.0,0.001]
[1765783022680,8.79901137,3133.1,3133.0,0.001]
[1765783022889,19.56884237,3133.1,3133.0,0.001]
[1765783023097,19.25510237,3133.1,3133.0,0.001]
[1765783023777,6.38450137,3133.1,3133.0,0.001]
[1765783023975,24.90875837,3133.1,3133.0,0.001]
[1765783024798,6.38450137,3133.1,3133.0,0.001]
[1765783025004,33.34388037,3133.1,3133.0,0.001]
[1765783027907,27.46613937,3133.1,3133.0,0.001]
[1765783029005,6.38450137,3133.1,3133.0,0.001]
[1765783029206,33.34388037,3133.1,3133.0,0.001]
[1765783030291,32.72596737,3133.1,3133.0,0.001]
[1765783030499,19.83679637,3133.1,3133.0,0.001]
[1765783030698,14.89794637,3133.1,3133.0,0.001]
[1765783030876,12.27931237,3133.1,3133.0,0.001]
[1765783031779,10.65886837,3133.1,3133.0,0.001]
[1765783032181,10.65887337,3133.1,3133.0,0.001]
[1765783033112,13.06579837,3133.1,3133.0,0.001]
[1765783033289,12.74631137,3133.1,3133.0,0.001]
[1765783034311,26.82365037,3133.1,3133.0,0.001]
[1765783035209,32.93837637,3133.1,3133.0,0.001]
[1765783037811,33.34388037,3133.1,3133.0,0.001]
[1765783038311,6.38450137,3133.1,3133.0,0.001]
[1765783038516,33.34388037,3133.1,3133.0,0.001]
[1765783040380,6.38450137,3133.1,3133.0,0.001]
[1765783040585,30.99770137,3133.1,3133.0,0.001]
[1765783041502,32.89118037,3133.1,3133.0,0.001]
[1765783041698,6.94954159,3133.1,3133.0,0.4892]
[1765783041900,7.45454159,3133.1,3133.0,0.4892]
[1765783042104,8.03501688,3133.1,3133.0,0.9511]
[1765783042306,6.34746388,3133.1,3133.0,0.4892]
[1765783045643,8.2199219,3133.1,3133.0,0.001]
[1765783046082,33.1206309,3133.1,3133.0,0.001]
[1765783046785,33.5261349,3133.1,3133.0,0.001]
[1765783052092,6.5667559,3133.1,3133.0,0.001]
[1765783052298,33.5261349,3133.1,3133.0,0.001]
[1765783057129,29.53572645,3133.1,3133.0,0.001]
[1765783057332,32.72745349,3133.1,3133.0,0.001]
[1765783058035,32.26405349,3133.1,3133.0,0.001]
[1765783058404,32.72265349,3133.1,3133.0,0.001]
[1765783059110,33.30312878,3133.1,3133.0,0.001]
[1765783062138,33.30512878,3133.1,3133.0,0.001]
[1765783062517,39.63512878,3133.1,3133.0,0.001]
[1765783070131,25.56731478,3133.1,3133.0,0.001]
[1765783070336,16.22950178,3133.1,3133.0,0.4659]
[1765783070633,19.8851919,3133.1,3133.0,0.001]
[1765783071334,16.8771919,3133.1,3133.0,0.001]
[1765783071631,14.92167688,3133.1,3133.0,0.4659]
[1765783071837,10.61879388,3133.1,3133.0,0.9219]
[1765783072062,10.61879388,3133.1,3133.0,0.001]
[1765783072063,14.35003088,3133.1,3133.0,0.001]
[1765783072613,43.31562862,3133.1,3133.0,0.001]
[1765783072809,42.86252862,3133.1,3133.0,0.001]
[1765783073019,25.14449088,3133.1,3133.0,0.4659]
[1765783073229,23.36973388,3133.1,3133.0,0.4659]
[1765783073638,27.42453988,3133.1,3133.0,0.4659]
[1765783073937,24.42453988,3133.1,3133.0,0.4659]
[1765783074633,36.76123088,3133.1,3133.0,0.4659]
[1765783074823,36.76123088,3133.1,3133.0,0.001]
[1765783075008,40.44453401,3133.1,3133.0,0.001]
[1765783075210,40.89763401,3133.1,3133.0,0.001]
[1765783075715,42.12008001,3133.1,3133.0,0.001]
[1765783076640,15.16070101,3133.1,3133.0,0.001]
[1765783076834,38.91047688,3133.1,3133.0,0.001]
[1765783077743,11.95109788,3133.1,3133.0,0.001]
[1765783078141,38.91047688,3133.1,3133.0,0.001]
[1765783078342,38.91047688,3133.1,3133.0,0.4668]
[1765783078343,34.10209688,3133.1,3133.0,0.4668]
[1765783078943,0.00959155,3132.8,3132.1,0.1667]
[1765783079242,0.00959155,3132.2,3132.1,0.6416]
[1765783079441,0.51459155,3132.2,3132.1,0.6416]
[1765783079747,0.51459155,3132.2,3132.1,1.1074]
[1765783085422,3.70723569,3132.2,3132.1,1.1074]
[1765783086025,3.70723569,3132.2,3132.1,0.6325]
[1765783086454,3.70723569,3132.2,3132.1,1.1074]
[1765783086871,3.70723569,3132.2,3132.0,0.001]
[1765783087084,3.73931076,3132.2,3132.0,0.001]
[1765783087370,3.73931076,3132.2,3132.1,0.4658]
[1765783087661,4.40138458,3132.2,3132.0,0.001]
[1765783087869,0.4788,3132.1,3132.0,0.001]
[1765783088367,4.90835965,3132.2,3132.0,0.001]
[1765783089662,3.67154608,3132.1,3132.0,0.001]
[1765783089866,4.13034608,3132.1,3132.0,0.001]
[1765783090079,4.16242115,3132.1,3132.0,0.001]
[1765783090231,4.29030268,3132.1,3132.0,0.001]
[1765783090430,3.83150268,3132.1,3132.0,0.001]
[1765783090936,4.29030268,3132.1,3132.0,0.001]
[1765783091268,39.75408836,3132.1,3132.0,0.001]
[1765783091439,39.72201329,3132.1,3132.0,0.001]
[1765783098562,25.05102829,3132.1,3132.0,0.001]
[1765783099349,40.22701329,3132.1,3132.0,0.001]
[1765783101276,13.26763429,3132.1,3132.0,0.001]
[1765783101461,40.22701329,3132.1,3132.0,0.001]
[1765783102371,6.329,3132.0,3131.8,0.001]
[1765783102547,36.12259834,3131.9,3131.8,0.001]
[1765783102744,36.54932327,3131.9,3131.8,0.001]
[1765783102942,37.02422327,3131.9,3131.8,0.001]
[1765783103348,40.21717323,3131.9,3131.8,0.001]
[1765783103747,22.85819393,3131.9,3131.8,0.001]
[1765783104548,31.24112593,3131.9,3131.8,0.001]
[1765783105573,32.28339193,3131.9,3131.8,0.001]
[1765783105961,32.74219193,3131.9,3131.8,0.001]
[1765783106183,31.42684593,3131.9,3131.8,0.001]
[1765783106561,27.74755593,3131.9,3131.8,0.4668]
[1765783106764,26.40795593,3131.9,3131.8,0.4668]
[1765783107091,32.08785593,3131.9,3131.8,0.4668]
[1765783107278,18.25013051,3131.9,3131.8,0.4668]
[1765783107589,11.4974208,3131.9,3131.8,0.4955]
[1765783107754,31.2537338,3131.9,3131.8,0.4955]
[1765783107954,26.3233828,3131.9,3131.8,0.4955]
[1765783108782,29.6159828,3131.9,3131.8,0.4955]
[1765783108964,29.54550093,3131.9,3131.8,0.4955]
[1765783109273,20.86694693,3131.9,3131.8,0.4955]
[1765783109480,20.86694693,3131.9,3131.8,0.9695]
[1765783109647,16.20432993,3131.9,3131.8,0.4955]
[1765783109853,13.5497238,3131.9,3131.8,0.9695]
[1765783110157,10.1120168,3131.9,3131.8,0.9695]
[1765783110360,10.6170168,3131.9,3131.8,0.9695]
[1765783110687,10.6170168,3131.9,3131.7,0.001]
[1765783110688,0.98597929,3131.8,3131.7,0.001]
[1765783110872,38.33603649,3131.8,3131.7,0.001]
[1765783111069,38.30396142,3131.8,3131.7,0.001]
[1765783111863,41.49701333,3131.8,3131.7,0.001]
[1765783112182,45.2908108,3131.8,3131.7,0.001]
[1765783112482,4.34797929,3131.6,3130.8,0.001]
[1765783112783,33.01072014,3130.9,3130.8,0.001]
[1765783112983,33.51572014,3130.9,3130.8,0.001]
[1765783113286,34.01092014,3130.9,3130.8,0.001]
[1765783113489,34.13887816,3130.9,3130.8,0.001]
[1765783113682,37.34848129,3130.9,3130.8,0.001]
[1765783113882,40.54245107,3130.9,3130.8,0.001]
[1765783120097,13.58307207,3130.9,3130.8,0.001]
[1765783120293,40.54245107,3130.9,3130.8,0.001]
[1765783121494,40.97424854,3130.9,3130.8,0.001]
[1765783122193,40.54245107,3130.9,3130.8,0.001]
[1765783124796,40.97424854,3130.9,3130.8,0.001]
[1765783125001,47.30324854,3130.9,3130.8,0.001]
[1765783125200,20.34386954,3130.9,3130.8,0.001]
[1765783125394,47.30324854,3130.9,3130.8,0.001]
[1765783126993,46.87145107,3130.9,3130.8,0.001]
[1765783127901,50.23345107,3130.9,3130.8,0.001]
[1765783128298,23.27407207,3130.9,3130.8,0.001]
[1765783128474,50.23345107,3130.9,3130.8,0.001]
[1765783130405,23.27407207,3130.9,3130.8,0.001]
[1765783130705,50.23345107,3130.9,3130.8,0.001]
[1765783133099,49.72845107,3130.9,3130.8,0.001]
[1765783133274,46.87145107,3130.9,3130.8,0.001]
[1765783134200,45.67585107,3130.9,3130.8,0.001]
[1765783134403,46.18085107,3130.9,3130.8,0.001]
[1765783134616,27.94535829,3130.5,3130.4,0.001]
[1765783134792,30.8201254,3130.5,3130.4,0.0234]
[1765783134981,35.2265957,3130.5,3130.4,0.0234]
[1765783135182,35.3932957,3130.5,3130.4,0.0234]
[1765783136106,38.08267359,3130.5,3130.4,0.0234]
[1765783136306,38.58767359,3130.5,3130.4,0.0234]
[1765783136814,44.91667359,3130.5,3130.4,0.0234]
[1765783137405,45.37617359,3130.5,3130.4,0.001]
[1765783138608,44.91667359,3130.5,3130.4,0.001]
[1765783138807,44.91667359,3130.5,3130.4,0.0234]
[1765783140718,44.91667359,3130.5,3130.4,0.001]
[1765783140719,18.41679459,3130.5,3130.4,0.001]
[1765783140925,44.91667359,3130.5,3130.4,0.001]
[1765783141295,44.91667359,3130.5,3130.4,0.0234]
[1765783142101,44.74997359,3130.5,3130.4,0.0234]
[1765783146224,45.20947359,3130.5,3130.4,0.001]
[1765783146604,45.69087359,3130.5,3130.4,0.001]
[1765783146800,45.85757359,3130.5,3130.4,0.001]
[1765783146995,44.91667359,3130.5,3130.4,0.0234]
[1765783147511,44.92412517,3130.5,3130.4,0.0234]
[1765783148007,48.28612517,3130.5,3130.4,0.0234]
[1765783148228,44.92412517,3130.5,3130.4,0.0234]
[1765783150130,44.41912517,3130.5,3130.4,0.0234]
[1765783150435,44.92412517,3130.5,3130.4,0.0234]
[1765783151951,16.52615029,3130.5,3130.4,0.0234]
[1765783152240,44.75742517,3130.5,3130.4,0.0234]
[1765783152910,44.75742517,3130.5,3130.4,0.001]
[1765783152911,45.69832517,3130.5,3130.4,0.001]
[1765783153117,45.82629425,3130.5,3130.4,0.001]
[1765783153637,44.88539425,3130.5,3130.4,0.001]
[1765783153955,44.88539425,3130.5,3130.4,0.0234]
[1765783154545,44.38039425,3130.5,3130.4,0.0234]
[1765783154746,44.88539425,3130.5,3130.4,0.0234]
[1765783155132,17.92801525,3130.5,3130.4,0.0234]
[1765783155335,44.88739425,3130.5,3130.4,0.0234]
[1765783157173,39.96847237,3130.5,3130.4,0.0234]
[1765783157352,33.290379,3130.5,3130.4,0.0458]
[1765783157551,0.002,3130.5,3130.4,0.0458]
[1765783160922,0.002,3130.5,3130.4,3.24027993]
[1765783161159,0.002,3130.5,3130.4,4.32516578]
[1765783162223,0.01159155,3130.5,3130.4,4.32516578]
[1765783164235,0.01159155,3130.5,3130.4,1.13068585]
[1765783164443,0.01159155,3130.5,3130.4,3.24027993]
[1765783164639,0.01159155,3130.5,3130.4,0.0458]
[1765783165326,0.01159155,3130.5,3130.4,0.0234]
[1765783165567,3.20596944,3130.5,3130.4,0.0234]
[1765783165854,3.74304451,3130.5,3130.4,0.0234]
[1765783166061,3.71096944,3130.5,3130.4,0.0458]
[1765783167661,4.89965931,3130.5,3130.4,0.001]
[1765783167958,9.81168119,3130.5,3130.4,0.001]
[1765783168258,37.35153548,3130.5,3130.4,0.001]
[1765783169559,44.08603948,3130.5,3130.4,0.001]
[1765783172663,44.21400774,3130.5,3130.4,0.001]
[1765783172833,47.57600774,3130.5,3130.4,0.001]
[1765783173034,44.21400774,3130.5,3130.4,0.001]
[1765783173478,43.71590774,3130.5,3130.4,0.001]
[1765783174835,44.14770521,3130.5,3130.4,0.001]
[1765783175038,44.59770521,3130.5,3130.4,0.001]
[1765783176458,17.63832621,3130.5,3130.4,0.001]
[1765783176661,44.14770521,3130.5,3130.4,0.001]
[1765783176854,43.71590774,3130.5,3130.4,0.001]
[1765783177939,43.22190774,3130.5,3130.4,0.0234]
[1765783178246,43.22190774,3130.5,3130.4,0.001]
[1765783178448,43.22190774,3130.5,3130.4,0.0234]
[1765783179171,10.03996944,3130.5,3130.4,0.0234]
[1765783179473,10.62044473,3130.5,3130.4,0.0458]
[1765783181364,10.62044473,3130.5,3130.4,0.0234]
[1765783183171,10.62044473,3130.5,3130.4,0.0458]
[1765783184684,10.62044473,3130.5,3130.4,0.0234]
[1765783186962,10.62044473,3130.5,3130.4,0.001]
[1765783187169,11.07654473,3130.5,3130.4,0.001]